bitfinex-derivatives/quotes_ETHF0:USTF0_20230106
["timestamp","ask_amount","ask_price","bid_price","bid_amount"]
[1673022000052,1.589,1260.9,1260.6,14.37548886]
[1673022002589,4.7968,1260.9,1260.6,14.37548886]
[1673022003312,1.589,1260.9,1260.6,14.37548886]
[1673022006044,1.589,1260.9,1260.8,1.589]
[1673022006259,6.579,1261.1,1260.8,4.7888]
[1673022006997,1.589,1261.2,1260.9,1.589]
[1673022007206,1.589,1261.2,1261.0,3.2078]
[1673022009943,6.584,1261.3,1261.0,4.7898]
[1673022010577,1.584,1261.3,1261.0,4.7898]
[1673022011306,13.756,1261.4,1261.2,4.7848]
[1673022011518,6.593,1261.5,1261.2,4.7848]
[1673022011833,9.8008,1261.5,1261.2,4.7848]
[1673022012049,6.593,1261.5,1261.2,4.7848]
[1673022012578,1.593,1261.5,1261.2,4.7848]
[1673022012781,1.584,1261.6,1261.4,3.2078]
[1673022013729,1.584,1261.6,1261.3,1.576]
[1673022017194,1.584,1261.6,1261.4,3.2078]
[1673022019301,18.5418,1261.7,1261.5,1.589]
[1673022019513,4.7858,1261.7,1261.5,1.589]
[1673022025386,1.578,1261.7,1261.5,1.589]
[1673022026338,6.59,1261.8,1261.6,1.589]
[1673022026750,5.0,1261.8,1261.7,1.576]
[1673022027594,1.589,1261.9,1261.7,1.576]
[1673022028858,1.589,1261.9,1261.8,3.2078]
[1673022029485,1.589,1261.9,1261.7,1.576]
[1673022030960,1.589,1262.0,1261.8,4.7838]
[1673022031898,3.2078,1262.1,1261.9,1.576]
[1673022033380,1.598,1262.2,1261.9,1.576]
[1673022034115,23.5678,1262.3,1262.1,1.589]
[1673022034319,9.8118,1262.3,1262.1,1.589]
[1673022036833,1.589,1262.2,1262.0,4.7898]
[1673022039576,1.589,1262.2,1262.0,1.582]
[1673022039782,1.589,1262.1,1261.9,1.576]
[1673022040311,4.7968,1262.1,1261.9,1.576]
[1673022040934,6.589,1262.0,1261.7,1.589]
[1673022041149,6.589,1262.0,1261.6,12.7738]
[1673022041150,1.584,1261.8,1261.6,4.7868]
[1673022041778,1.581,1261.7,1261.6,3.2078]
[1673022042305,1.587,1261.8,1261.6,3.2078]
[1673022047978,1.587,1261.8,1261.5,1.587]
[1673022052295,1.587,1261.7,1261.5,1.587]
[1673022052708,1.587,1261.7,1261.4,12.7818]
[1673022058700,1.587,1261.7,1261.4,12.77916249]
[1673022059226,1.587,1261.7,1261.4,12.7818]
[1673022062591,1.587,1261.9,1261.6,4.7908]
[1673022062801,6.587,1262.0,1261.6,4.7858]
[1673022063007,6.587,1262.0,1261.6,12.7728]
[1673022065425,15.343,1262.1,1261.8,1.587]
[1673022065739,5.0,1262.2,1262.0,1.583]
[1673022066163,6.587,1262.2,1261.9,1.587]
[1673022068475,1.587,1262.2,1262.0,3.2078]
[1673022068679,1.587,1262.3,1262.0,4.7878]
[1673022069724,18.756,1262.4,1262.0,4.7878]
[1673022069725,20.343,1262.4,1262.1,1.587]
[1673022069937,6.587,1262.4,1262.1,1.587]
[1673022071939,4.7868,1262.3,1262.0,1.581]
[1673022072254,1.579,1262.3,1262.0,1.581]
[1673022073099,4.7868,1262.3,1262.0,1.581]
[1673022076778,3.2078,1262.1,1262.0,1.581]
[1673022077721,4.7868,1262.3,1262.0,1.581]
[1673022088965,3.2078,1262.2,1262.0,1.581]
[1673022092431,4.7948,1262.2,1262.0,1.587]
[1673022093274,1.587,1262.2,1262.0,1.587]
[1673022094741,1.587,1262.2,1262.0,4.7948]
[1673022095163,1.587,1262.2,1262.0,12.7818]
[1673022099364,1.587,1262.2,1262.0,11.1948]
[1673022099580,9.7948,1262.4,1262.1,1.587]
[1673022102525,9.7818,1262.4,1262.2,1.587]
[1673022104524,6.574,1262.4,1262.2,4.7948]
[1673022104831,1.574,1262.4,1262.2,1.587]
[1673022105361,8.2078,1262.6,1262.4,1.574]
[1673022105574,8.2078,1262.6,1262.5,1.58]
[1673022105769,9.7898,1262.6,1262.4,1.574]
[1673022107986,3.161,1262.5,1262.2,1.583]
[1673022108195,4.7948,1262.4,1262.2,1.583]
[1673022110506,1.587,1262.4,1262.2,1.583]
[1673022110923,4.7948,1262.4,1262.2,1.583]
[1673022122282,4.7818,1262.4,1262.1,1.587]
[1673022128691,4.7818,1262.4,1262.1,1.57960141]
[1673022129316,1.574,1262.4,1262.1,1.57960141]
[1673022129956,1.581,1262.5,1262.2,1.58]
[1673022130172,9.7898,1262.6,1262.3,1.587]
[1673022135410,1.587,1262.4,1262.2,1.58]
[1673022135622,4.7948,1262.4,1262.2,1.58]
[1673022143093,1.587,1262.4,1262.2,1.58]
[1673022145410,4.7948,1262.4,1262.2,1.58]
[1673022151712,1.574,1262.3,1262.1,1.587]
[1673022154652,3.2078,1262.2,1262.1,1.587]
[1673022158538,1.574,1262.3,1262.1,1.587]
[1673022158752,3.2078,1262.2,1262.1,1.587]
[1673022166529,4.7818,1262.4,1262.1,3.165]
[1673022166837,4.7818,1262.4,1262.2,1.576]
[1673022169986,3.2078,1262.3,1262.2,1.576]
[1673022176195,1.574,1262.4,1262.2,1.576]
[1673022183018,3.2078,1262.3,1262.2,1.576]
[1673022186701,6.3598,1262.3,1261.9,4.7838]
[1673022186912,3.2078,1262.1,1261.9,4.7838]
[1673022187126,4.7948,1262.1,1261.8,1.587]
[1673022189327,4.7798,1261.9,1261.6,7.987]
[1673022189534,1.582,1261.7,1261.5,3.2078]
[1673022190273,4.7898,1261.7,1261.4,1.587]
[1673022191215,1.582,1261.7,1261.4,1.587]
[1673022193630,4.7898,1261.7,1261.4,1.587]
[1673022195941,1.587,1261.8,1261.6,1.587]
[1673022197109,3.2078,1261.9,1261.7,1.587]
[1673022197426,4.7918,1262.1,1261.8,1.587]
[1673022201945,4.7918,1262.1,1261.7,1.584]
[1673022202258,4.7918,1262.1,1261.9,1.58]
[1673022206571,3.2078,1262.0,1261.9,1.58]
[1673022211502,1.584,1262.1,1261.9,1.58]
[1673022211718,3.2078,1262.2,1262.0,1.576]
[1673022213605,3.2078,1262.2,1262.1,3.167]
[1673022215706,3.2078,1262.2,1262.1,1.587]
[1673022218533,1.587,1262.3,1262.1,1.587]
[1673022229057,4.7938,1262.4,1262.1,1.586]
[1673022230105,4.7938,1262.4,1262.1,9.573]
[1673022232102,4.7938,1262.4,1262.0,3.2078]
[1673022232103,16.9638,1262.6,1262.3,1.586]
[1673022232312,16.9638,1262.6,1262.5,1.583]
[1673022232313,3.2078,1262.6,1262.5,1.583]
[1673022233577,3.2078,1262.6,1262.4,1.586]
[1673022234839,4.7918,1262.6,1262.3,1.571]
[1673022235051,3.2078,1262.4,1262.3,1.571]
[1673022235887,4.7918,1262.6,1262.3,1.571]
[1673022238087,3.2078,1262.5,1262.3,1.571]
[1673022272369,3.2078,1262.5,1262.3,1.581]
[1673022279834,3.2078,1262.5,1262.3,1.586]
[1673022280052,4.7938,1262.5,1262.3,1.586]
[1673022280893,1.586,1262.4,1262.1,1.586]
[1673022281096,4.7908,1262.3,1262.0,1.572]
[1673022299491,3.2078,1262.3,1262.2,1.586]
[1673022301397,4.7938,1262.3,1262.0,1.572]
[1673022301604,3.2078,1262.1,1262.0,1.586]
[1673022310540,1.58,1262.2,1262.0,1.586]
[1673022311898,3.2078,1262.1,1262.0,1.586]
[1673022314337,1.586,1262.2,1262.0,1.586]
[1673022320113,4.7938,1262.2,1262.0,1.586]
[1673022322313,4.7938,1262.2,1262.1,1.579]
[1673022322314,3.2078,1262.2,1262.1,1.579]
[1673022323475,4.7938,1262.2,1261.9,1.58]
[1673022329360,3.2078,1262.0,1261.9,1.58]
[1673022334618,3.20564083,1262.0,1261.9,1.58]
[1673022334829,3.2078,1262.0,1261.9,1.58]
[1673022336722,1.586,1262.2,1261.9,1.58]
[1673022336936,4.7938,1262.2,1261.9,1.58]
[1673022338402,3.2078,1262.0,1261.9,1.58]
[1673022338618,4.7868,1262.0,1261.7,1.579]
[1673022338826,1.586,1261.8,1261.6,4.7938]
[1673022339772,1.586,1261.8,1261.6,1.586]
[1673022340090,1.586,1261.8,1261.6,4.7938]
[1673022341032,1.586,1261.8,1261.6,5.96347649]
[1673022341241,1.586,1261.8,1261.6,4.7938]
[1673022347657,1.586,1261.8,1261.6,5.96347649]
[1673022348285,1.586,1261.8,1261.6,4.7938]
[1673022352385,1.577,1261.9,1261.7,1.586]
[1673022359312,4.7848,1261.9,1261.7,1.586]
[1673022362373,1.586,1261.8,1261.6,1.586]
[1673022367304,1.586,1261.8,1261.6,2.75567649]
[1673022367525,1.586,1261.8,1261.6,1.586]
[1673022369414,1.586,1261.8,1261.7,3.2078]
[1673022372248,1.581,1261.9,1261.7,4.7938]
[1673022375516,1.581,1261.9,1261.7,1.586]
[1673022376578,3.2078,1261.8,1261.7,1.586]
[1673022376882,1.581,1261.9,1261.7,1.586]
[1673022379611,1.586,1261.8,1261.6,1.586]
[1673022379827,1.572,1261.9,1261.7,1.586]
[1673022381713,3.2078,1261.8,1261.7,1.586]
[1673022384675,1.572,1261.9,1261.7,1.586]
[1673022385087,4.7798,1261.9,1261.7,1.586]
[1673022386137,1.572,1261.9,1261.7,1.586]
[1673022386355,4.7798,1261.9,1261.7,1.586]
[1673022392243,1.586,1261.8,1261.6,1.586]
[1673022393294,3.2078,1261.7,1261.6,1.586]
[1673022394549,4.7938,1261.8,1261.6,1.586]
[1673022394761,4.7938,1261.8,1261.5,1.582]
[1673022394762,1.586,1261.7,1261.5,1.582]
[1673022394964,1.572,1261.6,1261.4,1.592]
[1673022395177,4.7798,1261.6,1261.4,1.592]
[1673022400122,4.7798,1261.6,1261.4,1.5895185]
[1673022400961,1.586,1261.5,1261.3,1.585]
[1673022403791,3.2078,1261.4,1261.3,1.585]
[1673022404001,1.586,1261.5,1261.3,1.585]
[1673022406643,3.2078,1261.4,1261.3,1.585]
[1673022410641,3.2078,1261.4,1261.3,1.584]
[1673022411685,3.2078,1261.4,1261.1,1.572]
[1673022411686,4.7798,1261.4,1261.1,1.572]
[1673022411898,1.586,1261.2,1261.0,1.572]
[1673022412428,4.7938,1261.2,1261.0,1.572]
[1673022413478,3.157,1261.1,1260.8,5.96347649]
[1673022416309,1.586,1260.9,1260.8,3.2078]
[1673022417995,1.578,1261.1,1260.8,4.7798]
[1673022418203,1.578,1261.1,1260.9,1.586]
[1673022418946,1.581,1261.2,1261.0,4.7938]
[1673022419153,4.7938,1261.4,1261.1,1.586]
[1673022419358,1.586,1261.4,1261.2,4.7938]
[1673022423042,1.586,1261.4,1261.2,1.586]
[1673022423457,1.586,1261.3,1261.1,4.7798]
[1673022431983,1.576,1261.4,1261.2,1.586]
[1673022432198,1.576,1261.4,1261.3,3.2078]
[1673022435556,1.576,1261.4,1261.2,1.586]
[1673022437343,1.576,1261.4,1261.2,4.7938]
[1673022442288,1.586,1261.5,1261.2,4.7868]
[1673022447331,1.576,1261.3,1261.0,11.84607649]
[1673022447545,1.576,1261.3,1261.0,4.7798]
[1673022447753,1.576,1261.3,1261.0,5.94947649]
[1673022448492,1.576,1261.3,1261.0,4.7798]
[1673022452274,3.2078,1261.2,1261.0,1.572]
[1673022452492,1.576,1261.3,1261.0,1.572]
[1673022462376,1.586,1261.2,1261.0,1.586]
[1673022465947,4.7938,1261.2,1261.0,1.586]
[1673022466991,3.163,1261.1,1260.9,3.2078]
[1673022467842,3.163,1261.1,1260.9,3.20371686]
[1673022469410,3.163,1261.1,1260.8,1.586]
[1673022469621,3.163,1261.1,1260.8,2.75567649]
[1673022469935,3.163,1261.1,1260.8,1.586]
[1673022470142,3.163,1261.1,1260.7,7.69144181]
[1673022470352,1.586,1260.9,1260.7,5.95647649]
[1673022471508,1.586,1260.9,1260.7,4.7868]
[1673022476135,1.586,1260.9,1260.7,1.579]
[1673022477080,1.586,1260.9,1260.7,1.586]
[1673022477808,1.586,1260.9,1260.8,3.2078]
[1673022479489,3.163,1261.1,1260.8,4.7938]
[1673022481488,3.163,1261.1,1260.8,5.96347649]
[1673022481702,15.337,1261.2,1261.0,3.2078]
[1673022481910,1.586,1261.3,1261.0,4.7798]
[1673022487578,1.586,1261.3,1261.0,4.7958]
[1673022487794,1.588,1261.3,1261.0,4.7958]
[1673022488420,1.579,1261.1,1261.0,3.2078]
[1673022488630,1.579,1261.1,1260.9,1.588]
[1673022492096,1.579,1261.1,1260.9,1.16967649]
[1673022492310,1.577,1261.3,1261.0,4.7848]
[1673022492941,18.5518,1261.5,1261.2,4.7888]
[1673022492942,13.756,1261.5,1261.2,4.7888]
[1673022493158,6.588,1261.6,1261.2,1.581]
[1673022493469,1.588,1261.4,1261.1,1.588]
[1673022496827,1.588,1261.4,1261.1,1.585]
[1673022498733,4.7958,1261.3,1261.0,4.7868]
[1673022499668,1.588,1261.2,1260.9,1.588]
[1673022503563,3.2078,1261.1,1260.9,1.588]
[1673022503768,1.588,1261.0,1260.8,3.2078]
[1673022503982,1.588,1261.0,1260.7,1.581]
[1673022504196,1.588,1261.0,1260.7,2.75067649]
[1673022504399,1.588,1261.0,1260.7,1.581]
[1673022504615,1.588,1260.9,1260.6,10.78018518]
[1673022505663,1.588,1260.9,1260.6,9.04521986]
[1673022506505,4.7958,1260.9,1260.6,9.04521986]
[1673022507344,1.588,1260.9,1260.6,9.04521986]
[1673022507763,1.588,1260.9,1260.6,5.83741986]
[1673022507975,1.588,1260.9,1260.6,9.04521986]
[1673022508183,1.588,1261.0,1260.7,1.588]
[1673022508391,1.588,1261.0,1260.8,3.2078]
[1673022512503,1.588,1261.0,1260.7,5.96547649]
[1673022514595,1.588,1261.0,1260.7,4.7958]
[1673022514805,1.588,1261.0,1260.7,5.96547649]
[1673022515127,1.588,1261.0,1260.7,4.7958]
[1673022516597,4.7958,1261.0,1260.7,4.7958]
[1673022520375,1.588,1261.0,1260.7,4.7958]
[1673022521858,1.588,1261.1,1260.9,3.2078]
[1673022522066,13.756,1261.2,1261.0,1.577]
[1673022522386,1.588,1261.3,1261.0,1.577]
[1673022525533,3.2078,1261.2,1261.0,1.577]
[1673022525745,3.2078,1261.2,1260.9,3.2078]
[1673022525746,4.7958,1261.2,1260.9,1.588]
[1673022526064,1.588,1261.1,1260.8,1.588]
[1673022529846,1.588,1261.0,1260.7,5.96547649]
[1673022530059,1.588,1261.0,1260.7,4.7958]
[1673022532150,4.7958,1261.0,1260.7,4.7958]
[1673022537303,4.7958,1261.0,1260.7,4.79241318]
[1673022539305,4.7958,1261.0,1260.7,1.588]
[1673022540569,1.576,1260.9,1260.6,2.76736535]
[1673022545723,1.576,1260.9,1260.6,4.50233067]
[1673022547088,1.576,1260.9,1260.6,2.76736535]
[1673022547299,1.576,1260.9,1260.6,4.50233067]
[1673022547717,1.576,1260.9,1260.6,2.76736535]
[1673022548557,1.576,1260.9,1260.6,4.50233067]
[1673022548762,1.576,1260.9,1260.6,2.76736535]
[1673022549295,1.576,1260.9,1260.6,1.59768886]
[1673022550137,1.576,1260.9,1260.6,2.76736535]
[1673022552242,1.588,1260.8,1260.6,1.19336535]
[1673022552862,1.588,1260.8,1260.6,2.92833067]
[1673022553176,1.588,1260.8,1260.6,1.19336535]
[1673022554230,4.7958,1261.0,1260.7,4.7958]
[1673022554861,4.7958,1261.0,1260.7,5.96547649]
[1673022555286,4.7958,1261.0,1260.7,4.7958]
[1673022555909,4.7958,1261.0,1260.7,5.96547649]
[1673022556655,1.588,1261.1,1260.8,1.58]
[1673022556865,6.588,1261.2,1260.9,4.7928]
[1673022558121,9.7958,1261.2,1260.9,4.7928]
[1673022559904,4.7958,1261.0,1260.7,3.2078]
[1673022560119,1.588,1261.0,1260.7,3.2078]
[1673022561492,4.7958,1261.0,1260.7,3.2078]
[1673022564532,12.7188,1261.0,1260.7,3.2078]
[1673022564745,1.576,1260.8,1260.6,1.19336535]
[1673022565157,1.576,1260.8,1260.6,0.02368886]
[1673022565158,4.7838,1260.8,1260.6,0.02368886]
[1673022565794,1.576,1260.8,1260.6,0.02368886]
[1673022566008,4.7838,1260.8,1260.6,0.02368886]
[1673022567268,1.576,1260.8,1260.6,0.02368886]
[1673022567483,1.588,1260.8,1260.6,1.61068886]
[1673022568107,1.588,1260.8,1260.6,2.78036535]
[1673022568322,1.588,1260.8,1260.6,1.61068886]
[1673022569375,1.588,1260.8,1260.6,2.78036535]
[1673022569691,1.588,1260.8,1260.7,3.2078]
[1673022571054,1.588,1260.9,1260.7,4.7958]
[1673022572530,1.588,1260.9,1260.7,1.588]
[1673022582296,1.588,1261.0,1260.7,1.588]
[1673022587246,3.2078,1261.0,1260.6,4.40116535]
[1673022587445,3.2078,1261.0,1260.7,1.588]
[1673022587446,4.7958,1261.0,1260.7,1.588]
[1673022589014,1.588,1261.0,1260.7,4.7958]
[1673022590494,3.2078,1260.9,1260.7,1.588]
[1673022591442,1.588,1261.0,1260.7,1.588]
[1673022591850,3.2078,1260.9,1260.7,1.588]
[1673022592279,1.588,1261.0,1260.7,1.588]
[1673022595014,3.2078,1260.9,1260.7,1.588]
[1673022599330,3.2078,1260.9,1260.7,1.588]
[1673022601527,1.579,1260.8,1260.6,0.02368886]
[1673022605216,1.579,1260.8,1260.6,1.19336535]
[1673022605428,1.579,1260.8,1260.6,0.02368886]
[1673022605639,1.579,1260.8,1260.6,1.19336535]
[1673022606364,1.579,1260.8,1260.6,2.92833067]
[1673022606579,1.579,1260.8,1260.6,1.19336535]
[1673022607420,1.579,1260.8,1260.6,2.92833067]
[1673022607634,1.579,1260.8,1260.6,0.02368886]
[1673022607950,1.579,1260.8,1260.6,1.19336535]
[1673022608155,1.579,1260.8,1260.6,0.02368886]
[1673022608466,1.579,1260.8,1260.6,1.19336535]
[1673022608786,1.58,1260.8,1260.6,0.02368886]
[1673022609525,1.58,1260.8,1260.7,3.2078]
[1673022610888,1.58,1260.8,1260.6,1.19336535]
[1673022611412,1.58,1260.8,1260.6,0.02368886]
[1673022611617,1.58,1260.8,1260.6,1.19336535]
[1673022611824,1.58,1260.8,1260.6,0.02368886]
[1673022612037,1.58,1260.8,1260.6,1.19336535]
[1673022612246,4.7838,1260.9,1260.6,1.60168886]
[1673022612456,4.7838,1260.9,1260.6,2.77136535]
[1673022613514,4.7838,1260.9,1260.6,2.76746554]
[1673022614454,4.7838,1260.9,1260.6,1.59778905]
[1673022622453,1.576,1260.8,1260.6,0.01978905]
[1673022630324,6.587,1261.0,1260.7,1.589]
[1673022630742,1.58,1260.9,1260.6,2.77046554]
[1673022630951,1.576,1260.8,1260.6,0.01978905]
[1673022631709,1.589,1260.9,1260.6,2.77846554]
[1673022632018,1.589,1261.0,1260.7,4.7858]
[1673022637271,3.2078,1260.9,1260.7,1.578]
[1673022637480,1.589,1260.8,1260.6,1.59578905]
[1673022641692,4.7968,1260.9,1260.7,1.577]
[1673022642956,1.589,1260.9,1260.7,1.577]
[1673022643164,4.7968,1260.9,1260.7,1.577]
[1673022647155,1.589,1260.9,1260.7,1.577]
[1673022652301,1.589,1260.8,1260.6,1.60878905]
[1673022652717,3.2078,1261.0,1260.6,0.01978905]
[1673022652925,1.589,1260.8,1260.6,1.60878905]
[1673022655448,12.7198,1261.0,1260.6,0.01978905]
[1673022655663,1.589,1260.8,1260.6,1.59678905]
[1673022655872,1.589,1260.8,1260.7,3.2078]
[1673022656087,4.7878,1261.0,1260.7,4.7968]
[1673022659659,4.7878,1261.0,1260.7,1.589]
[1673022659870,1.576,1260.8,1260.6,1.59678905]
[1673022661873,1.576,1260.8,1260.7,3.2078]
[1673022666806,1.576,1260.8,1260.6,5.97426554]
[1673022667014,1.576,1260.8,1260.6,7.70923086]
[1673022668585,1.576,1260.8,1260.6,4.50143086]
[1673022668795,1.576,1260.8,1260.7,3.2078]
[1673022672271,1.58,1260.9,1260.7,3.2078]
[1673022681309,1.589,1261.0,1260.8,1.578]
[1673022689501,1.589,1261.0,1260.8,1.57108074]
[1673022689922,8.2078,1261.1,1260.7,3.2078]
[1673022690134,1.589,1261.0,1260.8,1.589]
[1673022690764,4.7968,1260.9,1260.7,3.2078]
[1673022692445,1.589,1260.9,1260.7,3.2078]
[1673022694340,4.7968,1260.9,1260.6,2.77846554]
[1673022696016,4.7968,1260.9,1260.7,3.2078]
[1673022696746,1.589,1260.9,1260.7,3.2078]
[1673022706117,1.589,1260.9,1260.7,4.37747649]
[1673022708318,1.589,1260.9,1260.7,3.2078]
[1673022712305,1.589,1260.9,1260.7,4.7968]
[1673022719874,1.589,1260.9,1260.7,1.589]
[1673022721243,4.7968,1260.9,1260.7,1.589]
[1673022722189,3.2078,1260.9,1260.7,1.589]
[1673022722507,4.7878,1260.9,1260.7,1.589]
[1673022722819,1.58,1260.9,1260.7,1.589]
[1673022726076,4.7838,1260.8,1260.6,1.59578905]
[1673022728174,4.7838,1260.8,1260.6,4.80358905]
[1673022728594,1.576,1260.8,1260.6,4.80358905]
[1673022731652,1.576,1260.8,1260.6,1.59578905]
[1673022737214,1.576,1260.8,1260.6,0.01978905]
[1673022739746,1.589,1260.9,1260.7,1.589]
[1673022743212,1.589,1260.9,1260.7,4.7968]
[1673022748464,1.589,1260.9,1260.7,5.96647649]
[1673022748676,1.589,1260.9,1260.7,4.7968]
[1673022748882,1.589,1261.0,1260.8,1.589]
[1673022749094,18.756,1261.3,1260.9,7.9518]
[1673022749304,18.756,1261.3,1261.2,1.578]
[1673022749305,13.756,1261.3,1261.2,1.578]
[1673022749511,1.589,1261.4,1261.2,1.578]
[1673022750569,9.8088,1261.5,1261.3,1.589]
[1673022750775,4.8088,1261.5,1261.3,1.589]
[1673022751731,1.601,1261.5,1261.3,4.7968]
[1673022753303,1.601,1261.5,1261.3,1.589]
[1673022754574,4.8088,1261.5,1261.3,1.589]
[1673022756768,4.8088,1261.5,1261.3,4.7968]
[1673022756982,1.601,1261.5,1261.3,4.7968]
[1673022758039,1.601,1261.5,1261.3,4.79082276]
[1673022759090,23.5658,1261.7,1261.4,1.589]
[1673022759300,9.8098,1261.7,1261.4,1.589]
[1673022760667,1.589,1261.7,1261.5,4.7858]
[1673022763939,4.7968,1261.7,1261.5,1.578]
[1673022766025,1.576,1261.6,1261.3,4.7858]
[1673022766235,1.589,1261.5,1261.3,4.7858]
[1673022768546,8.2078,1261.9,1261.4,11.09]
[1673022768760,8.2078,1261.9,1261.7,1.589]
[1673022768974,9.7838,1261.9,1261.7,1.589]
[1673022769489,1.578,1261.8,1261.6,1.581]
[1673022770227,1.578,1261.8,1261.7,3.2078]
[1673022772011,5.0,1261.9,1261.7,4.7848]
[1673022773597,5.0,1261.9,1261.7,1.577]
[1673022777071,5.0,1261.9,1261.8,1.582]
[1673022780674,8.2078,1261.9,1261.8,1.582]
[1673022781595,5.0,1261.9,1261.8,1.582]
[1673022782330,6.574,1261.9,1261.7,1.589]
[1673022786731,6.574,1261.9,1261.7,4.7968]
[1673022789683,9.7818,1261.9,1261.7,4.7968]
[1673022789991,9.7818,1261.9,1261.7,1.589]
[1673022791043,6.574,1261.9,1261.7,1.589]
[1673022793567,9.7818,1261.9,1261.7,1.589]
[1673022794395,6.574,1261.9,1261.7,1.589]
[1673022802066,1.58,1262.0,1261.8,1.589]
[1673022802282,9.7838,1262.1,1261.9,1.589]
[1673022806282,1.589,1262.0,1261.7,1.589]
[1673022807963,1.589,1262.0,1261.8,3.2078]
[1673022808691,9.7968,1262.1,1261.8,4.7968]
[1673022811637,9.7968,1262.1,1261.8,1.589]
[1673022822358,1.589,1262.0,1261.8,1.579]
[1673022822560,1.589,1262.0,1261.8,4.7868]
[1673022824359,1.589,1262.0,1261.8,1.579]
[1673022826262,5.0,1262.1,1261.9,1.589]
[1673022826688,5.0,1262.1,1261.9,4.7968]
[1673022827730,5.0,1262.1,1261.9,1.589]
[1673022829523,6.576,1262.1,1261.9,1.578]
[1673022833391,6.576,1262.1,1261.9,1.57222942]
[1673022836327,6.576,1262.1,1261.9,4.78002942]
[1673022840319,1.576,1262.1,1261.9,4.78002942]
[1673022842214,15.345,1262.2,1262.0,1.589]
[1673022842428,1.589,1262.2,1262.0,1.589]
[1673022844425,6.592,1262.3,1262.1,1.578]
[1673022845690,5.0,1262.3,1262.2,1.589]
[1673022845886,4.7968,1262.4,1262.2,1.589]
[1673022846099,1.589,1262.4,1262.2,1.589]
[1673022846837,1.589,1262.4,1262.3,3.2078]
[1673022847050,3.2078,1262.6,1262.3,4.7898]
[1673022847051,11.29753129,1262.6,1262.3,4.7898]
[1673022847366,6.50073129,1262.6,1262.5,1.578]
[1673022847568,9.70853129,1262.6,1262.5,1.578]
[1673022847889,11.28453129,1262.6,1262.4,1.58]
[1673022848098,1.589,1262.5,1262.3,1.581]
[1673022849464,4.7878,1262.4,1262.2,1.577]
[1673022850310,1.58,1262.4,1262.2,1.577]
[1673022855042,1.589,1262.5,1262.3,1.578]
[1673022855257,1.589,1262.5,1262.3,4.7858]
[1673022859142,1.589,1262.5,1262.3,1.578]
[1673022859349,3.2078,1262.4,1262.3,1.578]
[1673022860709,1.589,1262.5,1262.3,1.578]
[1673022867966,1.589,1262.5,1262.3,4.7858]
[1673022869228,1.589,1262.5,1262.3,1.578]
[1673022871653,1.589,1262.4,1262.2,1.577]
[1673022871863,4.7968,1262.4,1262.2,1.577]
[1673022873438,1.576,1262.3,1262.1,3.2078]
[1673022873859,1.576,1262.3,1262.0,1.589]
[1673022878692,1.576,1262.3,1262.1,3.2078]
[1673022880178,1.576,1262.3,1262.0,1.589]
[1673022880179,1.576,1262.3,1262.0,4.7968]
[1673022881740,4.7838,1262.3,1262.0,1.589]
[1673022884683,1.576,1262.3,1262.0,4.7968]
[1673022885844,1.576,1262.3,1262.0,1.589]
[1673022886052,1.576,1262.3,1262.0,4.7968]
[1673022892355,1.589,1262.3,1262.1,1.578]
[1673022902234,1.58,1262.3,1262.1,1.581]
[1673022905802,4.7878,1262.3,1262.1,1.581]
[1673022906230,4.7878,1262.3,1262.1,1.5746432]
[1673022912321,1.589,1262.3,1262.0,1.579]
[1673022918210,3.2078,1262.2,1262.0,1.579]
[1673022922411,4.7838,1262.2,1262.0,1.578]
[1673022927577,1.576,1262.2,1262.0,1.578]
[1673022928085,3.2078,1262.1,1262.0,1.578]
[1673022931459,1.576,1262.2,1262.0,1.578]
[1673022939442,3.2078,1262.1,1262.0,1.578]
[1673022940800,4.7838,1262.2,1262.0,1.578]
[1673022942278,4.7968,1262.2,1261.9,1.579]
[1673022944804,4.7968,1262.0,1261.7,2.74867649]
[1673022945012,4.7968,1262.0,1261.7,4.48364181]
[1673022946381,4.7968,1262.0,1261.8,3.2078]
[1673022949735,1.589,1262.0,1261.8,3.2078]
[1673022951523,1.589,1262.0,1261.7,4.7868]
[1673022952569,1.589,1262.0,1261.8,3.2078]
[1673022952889,4.7858,1262.1,1261.8,4.7968]
[1673022953304,3.2078,1262.1,1261.9,1.589]
[1673022953513,1.589,1262.2,1261.9,1.589]
[1673022956583,1.589,1262.2,1261.9,4.7968]
[1673022962146,1.58643337,1262.2,1261.9,4.7968]